[Event "DFMM-LV 2023"]
[Site "Braunfels"]
[Date "2023.06.11"]
[Round "5.26"]
[White "Novikova, Margarita"]
[Black "Korenova, Martina"]
[Result "1/2-1/2"]
[Annotator "TA"]
[ECO "C54"]
[WhiteElo "1985"]
[BlackElo "2151"]
[PlyCount "64"]
[EventDate "2023.06.09"]
[EventType "team-tourn"]
[EventCountry "GER"]
[SourceTitle "playchess.com"]
[Source "ChessBase"]
[SourceQuality "1"]
[TimeControl "40/5400+30:1800+30"]

{[%evp 13,64,11,18,17,31,17,21,-14,-6,-56,-44,-308,-60,-63,-47,-69,-44,-79,-32,-72,-45,-83,-38,-43,0,0,9,9,9,9,8,4,7,6,6,8,9,16,18,0,23,7,7,0,0,0,0,0,0,0,0,0,11]} 1. e4 {[%emt 0:00:08]} e5 {[%emt 0:00:04]} 2. Nf3 {[%emt 0:00:12]} Nc6 {[%emt 0:00:05]} 3. Bc4 {[%emt 0:02:09]} Bc5 {[%emt 0:00:06]} 4. d3 {[%emt 0:00:24]} Nf6 {[%emt 0:00:47]} 5. O-O {[%emt 0:00:48]} d6 {[%emt 0:00:29]} 6. c3 {[%emt 0:05:16]} O-O {[%emt 0:04:31]} 7. h3 {[%emt 0:00:40]} a6 {[%emt 0:05:37] 7...a5 is becoming the main line.} 8. a4 {[%emt 0:07:55] C54: Giuoco Piano: 4 c3 Nf6, main lines with 5 d4 and 5 d3.} Ne7 {[%emt 0:05:51]} 9. b4 {[%emt 0:13:06]} Bb6 {[%emt 0:03:38]} 10. Qb3 {[%emt 0:02:18]} Ng6 {[%emt 0:02:14] [#]} 11. Be3 $146 {[%emt 0:05:48]} (11. a5 $11 Ba7 12. Re1) ({Predecessor:} 11. Kh2 c6 12. Bxf7+ Rxf7 13. Ng5 d5 14. exd5 cxd5 15. Nxf7 {½-½ Adiyaman,R (1881)-Wichtrup,J (1700) Ruhrgebiet Verbandsliga1 1213 2012 (9)}) 11... c6 $15 {[%emt 0:01:59] [#] White must now prevent ...Bxe3.} 12. a5 $2 {[%emt 0:02:02][%mdl 8192]} ({White should play} 12. Bxb6 $15 Qxb6 13. Nbd2) 12... Bc7 $2 {[%emt 0:00:45]} ({Black should try} 12... Bxe3 $19 13. Bxf7+ (13. fxe3 $2 {is the wrong capture.} d5 $19) 13... Rxf7 14. fxe3 h6) 13. Qc2 {[%emt 0:09:57]} d5 {[%emt 0:09:59]} 14. Bb3 {[%emt 0:02:41]} h6 {[%emt 0:00:19]} 15. Rd1 {[%emt 0:03:48]} Re8 {[%emt 0:02:32]} (15... Be6 $17) 16. Nbd2 {[%emt 0:00:39]} Be6 {[%emt 0:13:17]} 17. d4 {[%emt 0:10:27]} Qc8 {[%emt 0:05:13][%cal Oe6h3] [#] ...Bxh3! is the strong threat.} (17... exd4 {feels hotter.} 18. exd5 Nxd5 19. Nxd4 Nxe3 20. fxe3 Bxb3 21. N4xb3 Rxe3 22. Nc4 Qg5) 18. dxe5 $1 {[%emt 0:03:13]} Nxe4 {[%emt 0:09:37]} 19. Nxe4 {[%emt 0:01:11] aiming for Ng3.} dxe4 {[%emt 0:00:19]} 20. Bxe6 {[%emt 0:00:40]} Qxe6 {[%emt 0:00:13]} 21. Qxe4 {[%emt 0:00:22]} Nxe5 {[%emt 0:01:55]} 22. Bd4 {[%emt 0:06:36]} Nxf3+ {[%emt 0:15:22]} (22... f5 {simplifies} 23. Qf4 Nxf3+ 24. Qxf3 Rad8) 23. Qxf3 {[%emt 0:00:03]} Rad8 {[%emt 0:00:39]} 24. Qg4 {[%emt 0:03:52]} Qxg4 {[%emt 0:00:50]} 25. hxg4 {[%emt 0:00:01]} Rd5 {[%emt 0:03:50]} 26. Re1 {[%emt 0:01:23]} Re6 {[%emt 0:01:42]} 27. Rxe6 {[%emt 0:10:05]} fxe6 $11 {[%emt 0:00:06] KRB-KRB. The position is equal.} 28. Re1 {[%emt 0:03:17]} Kf7 {[%emt 0:00:14]} 29. Kf1 {[%emt 0:01:03]} Bd6 {[%emt 0:03:37]} 30. Rb1 {[%emt 0:00:18]} e5 {[%emt 0:05:15]} 31. Be3 {[%emt 0:00:02]} Be7 {[%emt 0:00:51]} 32. Ke2 {[%emt 0:00:47]} Ke6 {[%emt 0:00:55] Weighted Error Value: White=0.32/Black=0.21 (precise) .  Loses game:     	White=1     	---        Missed win:     	---       	Black=1      Mistake:       	White=1     	Black=1      Inaccurate:     	White=4     	Black=2      OK:         	White=4     	Black=9      Best:        	White=1     	---        Strong:       	White=1     	---        Brilliant:      	---       	---} 1/2-1/2

[Event "DFMM-LV 2023"]
[Site "Braunfels"]
[Date "2023.06.11"]
[Round "5.28"]
[White "Haug, Mara"]
[Black "Just, Anita"]
[Result "1/2-1/2"]
[Annotator "TA"]
[ECO "C00"]
[WhiteElo "1754"]
[BlackElo "1910"]
[PlyCount "120"]
[EventDate "2023.06.09"]
[EventType "team-tourn"]
[EventCountry "GER"]
[SourceTitle "playchess.com"]
[Source "ChessBase"]
[SourceQuality "1"]
[TimeControl "40/5400+30:1800+30"]

{[%evp 16,120,43,30,66,72,104,70,167,95,117,106,91,112,111,95,88,93,118,96,96,78,110,106,114,69,115,108,86,72,80,62,104,35,87,15,50,38,67,72,132,133,132,138,136,133,141,135,131,82,134,141,136,133,226,145,166,137,185,148,148,133,167,181,182,145,147,123,123,127,144,121,116,109,121,97,125,115,124,80,85,81,109,106,106,106,108,108,108,108,108,91,102,89,94,55,68,58,85,65,79,60,17,17,99,97,102]} 1. e4 {[%emt 0:00:04]} e6 {[%emt 0:00:06]} 2. Nf3 {[%emt 0:00:06]} d5 {[%emt 0:00:17]} 3. Nc3 {[%emt 0:00:06][%cal Bb1c3,Bc3e2,Be2d4,Bd4b5][%mdl 32]} d4 {[%emt 0:00:31]} 4. Ne2 {[%emt 0:00:09]} c5 {[%emt 0:00:11]} 5. c3 {[%emt 0:00:09]} Nc6 {[%emt 0:01:40]} 6. cxd4 {[%emt 0:00:18]} cxd4 {[%emt 0:00:09]} 7. Qa4 {[%emt 0:00:14]} Bc5 {[%emt 0:06:46]} 8. b4 {[%emt 0:10:52]} Bxb4 {[%emt 0:20:53]} 9. Nexd4 {[%emt 0:01:31]} ({Much weaker is} 9. Nfxd4 Nge7 $11) 9... Qa5 {[%emt 0:07:20] C00: French: Unusual White 2nd moves.} 10. Qxa5 {[%emt 0:09:10]} Nxa5 {[%emt 0:00:55]} 11. Nb5 {[%emt 0:01:30] [#]} Kd8 $146 {[%emt 0:05:01] Repels Nc7} (11... Kf8 $14) ({Predecessor:} 11... Ke7 12. a3 Bc5 13. d4 Bb6 14. Bd2 g6 15. Ne5 Nc6 16. Nc4 Nf6 17. Nxb6 axb6 {½-½ Musaeva,A-Ertel,S RUS-chJ U18 (Women) 2000}) 12. Bb2 {[%emt 0:11:49]} (12. Rb1 $18 Nc6 13. Ne5 Nxe5 14. Rxb4) 12... f6 {[%emt 0:07:49]} 13. e5 {[%emt 0:11:18]} a6 {[%emt 0:11:39]} 14. Nbd4 {[%emt 0:01:59]} Bd7 {[%emt 0:01:49]} 15. Be2 {[%emt 0:03:40]} Rc8 {[%emt 0:03:51]} 16. O-O {[%emt 0:02:39][%cal Bh1f1,Bf1c1,Bc1c5][%mdl 32]} Ke7 {[%emt 0:03:25]} 17. a3 {[%emt 0:04:17]} Bc5 {[%emt 0:02:05]} 18. Rab1 {[%emt 0:07:30]} Nc6 {[%emt 0:05:41]} 19. Nb3 {[%emt 0:05:19]} Ba7 {[%emt 0:00:50]} 20. Rfc1 {[%emt 0:02:17]} Nh6 {[%emt 0:06:38]} (20... Nxe5 $14 {deserves consideration.} 21. Nxe5 fxe5) 21. exf6+ {[%emt 0:07:48]} gxf6 {[%emt 0:00:08]} 22. Nc5 {[%emt 0:00:53]} Bxc5 {[%emt 0:02:20]} 23. Rxc5 {[%emt 0:00:03]} Nf7 {[%emt 0:00:53]} 24. Rbc1 {[%emt 0:06:04] White has more active pieces.} (24. a4 $16) 24... Rhg8 {[%emt 0:01:54]} (24... Nd6 $14) 25. Kh1 {[%emt 0:04:22]} ({White should play} 25. Rh5 $16) 25... Nd6 {[%emt 0:02:35]} (25... Na7 {simplifies} 26. a4 Rxc5 27. Rxc5 Rc8) 26. Bd3 {[%emt 0:01:18]} f5 {[%emt 0:00:39]} 27. Re1 {[%emt 0:04:14]} Rg4 {[%emt 0:02:38]} ({Better is} 27... b6 28. Rd5 Ne4 29. Bxe4 exd5 30. Bxd5+ Kd6 31. Bxg8 Rxg8) 28. Bxf5 $16 {[%emt 0:02:38]} Nxf5 {[%emt 0:02:04]} 29. Rxf5 {[%emt 0:00:02]} Rcg8 {[%emt 0:01:16] Black is weak on the dark squares} 30. g3 {[%emt 0:00:38] And now Rh5 would win.} Rf8 {[%emt 0:00:44] Wards off Rh5} 31. Rxf8 {[%emt 0:00:27]} Kxf8 {[%emt 0:00:03]} 32. h3 {[%emt 0:01:01]} (32. Kg2 $142) 32... Rg6 {[%emt 0:00:53]} (32... Rc4 $142) 33. Kg1 {[%emt 0:00:38]} Ke8 {[%emt 0:00:52]} 34. h4 {[%emt 0:00:48]} Kd8 {[%emt 0:00:31]} (34... h6 $16 {might work better.} 35. d3 Kf7) 35. Re3 {[%emt 0:00:38]} Kc7 {[%emt 0:00:40]} 36. Rd3 {[%emt 0:00:38]} Be8 {[%emt 0:00:33]} (36... h6 $16 {was worth a try.} 37. Ne5 Nxe5 38. Bxe5+ Kd8) 37. Kh2 {[%emt 0:00:48]} h6 {[%emt 0:01:07]} 38. Rc3 {[%emt 0:00:22]} Kb8 {[%emt 0:00:58]} 39. Re3 {[%emt 0:00:24]} Bd7 {[%emt 0:00:32]} 40. Kg1 {[%emt 0:00:27]} Kc8 {[%emt 0:00:40]} 41. Rd3 {[%emt 0:08:38]} Rg4 {[%emt 0:05:05]} 42. Kf1 {[%emt 0:03:33]} Be8 {[%emt 0:03:12]} 43. Ke1 {[%emt 0:03:12]} Bg6 {[%emt 0:02:17]} 44. Rc3 {[%emt 0:04:00]} Kd8 {[%emt 0:02:05]} 45. Kd1 {[%emt 0:01:37]} Be4 {[%emt 0:03:23]} 46. Re3 {[%emt 0:02:28] [#] Threatens to win with Nh2.} Bd5 {[%emt 0:00:26]} 47. Ne5 {[%emt 0:01:33]} Nxe5 {[%emt 0:00:52]} 48. Bxe5 {[%emt 0:02:50][%mdl 4096] Endgame KRB-KRB} Kd7 {[%emt 0:03:51]} 49. Bf4 {[%emt 0:00:50]} h5 {[%emt 0:01:52]} 50. Rc3 {[%emt 0:00:22]} Bc6 {[%emt 0:00:43]} 51. Rc5 {[%emt 0:00:24]} Rg8 {[%emt 0:01:19]} 52. Ke1 {[%emt 0:00:40]} (52. Rxh5 $2 {too greedy.} Bf3+ 53. Kc2 Bxh5 $19) 52... Rh8 {[%emt 0:00:19]} 53. Rg5 {[%emt 0:00:22]} Rh7 {[%emt 0:00:30]} 54. Rg6 {[%emt 0:01:42]} Bf3 {[%emt 0:02:09]} 55. d4 {[%emt 0:01:42]} Bd5 {[%emt 0:02:37]} 56. Kd2 {[%emt 0:00:32]} Kc6 {[%emt 0:00:50]} 57. Kc3 {[%emt 0:00:21]} Kb5 {[%emt 0:00:46] [#]} 58. Rh6 $1 {[%emt 0:01:39]} Rxh6 {[%emt 0:01:27]} 59. Bxh6 {[%emt 0:00:03]} Kc6 {[%emt 0:01:59]} (59... Ka4 $11) 60. Kd3 {[%emt 0:00:35]} Kd7 {[%emt 0:05:12] Black defended with fortune.   Weighted Error Value: White=0.18 (very precise) /Black=0.22 (precise)} 1/2-1/2

[Event "DFMM-LV 2023"]
[Site "Braunfels"]
[Date "2023.06.11"]
[Round "5.29"]
[White "Daemering, Katrin"]
[Black "Wellenreich, Jenni"]
[Result "1-0"]
[Annotator "TA"]
[ECO "B43"]
[WhiteElo "1944"]
[BlackElo "1828"]
[PlyCount "79"]
[EventDate "2023.06.09"]
[EventType "team-tourn"]
[EventCountry "GER"]
[SourceTitle "playchess.com"]
[Source "ChessBase"]
[SourceQuality "1"]
[TimeControl "40/5400+30:1800+30"]

{[%evp 11,79,25,30,13,8,7,16,13,8,6,28,0,10,9,0,0,18,-13,0,-60,-7,0,-9,-27,-14,-58,-41,-49,-43,-68,-53,-124,-120,-122,-123,-122,0,0,0,0,0,0,0,-17,158,168,541,89,98,108,115,102,398,329,1189,481,1177,254,1512,1469,29982,29983,29976,29974,29984,29985,29985,29986,29986,29987]} 1. e4 {[%emt 0:00:03]} c5 {[%emt 0:00:06]} 2. Nf3 {[%emt 0:00:07]} e6 {[%emt 0:00:13]} 3. d4 {[%emt 0:00:07]} cxd4 {[%emt 0:00:12]} 4. Nxd4 {[%emt 0:00:06]} a6 {[%emt 0:00:24]} 5. Nc3 {[%emt 0:01:50]} Qc7 {[%emt 0:00:37]} 6. a3 {[%emt 0:02:18]} Nf6 {[%emt 0:02:21]} 7. g3 {[%emt 0:03:17] 7.f4 gains popularity. B43: Sicilian: Kan Variation: 5 Nc3.} Nc6 {[%emt 0:04:02]} 8. Nb3 {[%emt 0:01:46]} Be7 {[%emt 0:03:04]} 9. Bg2 {[%emt 0:01:08] The position is equal.} O-O {[%emt 0:01:25]} 10. O-O {[%emt 0:00:05]} d6 {[%emt 0:03:26]} 11. f4 {[%emt 0:04:29] [#]} Rd8 $146 {[%emt 0:03:16]} ({Predecessor:} 11... Rb8 12. Be3 b5 13. Qe2 Bb7 14. g4 Nd7 15. Qf2 Na5 16. Nxa5 Qxa5 17. g5 Rfe8 {½-½ Soukal,R (2199)-Novak,P (2254) CZE-chTJ 0102 2001 (2)}) 12. Qe2 {[%emt 0:10:02]} b5 {[%emt 0:09:38]} 13. Be3 {[%emt 0:10:08]} Nd7 {[%emt 0:03:44]} 14. Rae1 {[%emt 0:11:01]} Bb7 {[%emt 0:04:12]} 15. f5 {[%emt 0:09:32]} ({White should try} 15. Na2 $11) 15... Nde5 {[%emt 0:09:07]} (15... Bf6 $1 $15) 16. Bh3 {[%emt 0:06:41]} Bc8 {[%emt 0:02:17]} 17. Qf2 {[%emt 0:04:38]} Rb8 {[%emt 0:03:51]} 18. Nd4 {[%emt 0:07:01]} Nxd4 {[%emt 0:03:40]} 19. Bxd4 {[%emt 0:01:02]} Bf6 {[%emt 0:01:23]} 20. Kh1 {[%emt 0:04:41]} Re8 {[%emt 0:08:33]} (20... b4 $5 {[%cal Rb4c3]} 21. Nd1 bxa3 22. bxa3 Rf8 $15) 21. g4 {[%emt 0:04:57]} ({Better is} 21. b3 $15) 21... b4 $17 {[%emt 0:03:34]} 22. axb4 {[%emt 0:02:54]} Rxb4 {[%emt 0:01:16][%cal Oe5g4]} 23. Rd1 {[%emt 0:06:02]} Qc6 {[%emt 0:04:37]} (23... Rxb2 24. g5 (24. Nd5 exd5 25. Bxb2 dxe4 $17) 24... Bxg5 25. fxe6 fxe6 26. Nd5 exd5 27. Bxc8 Rxc8 28. Bxb2 $11) (23... a5 $17 24. b3 h6) 24. g5 $11 {[%emt 0:02:14]} Bxg5 {[%emt 0:03:06]} 25. fxe6 {[%emt 0:00:48]} f6 {[%emt 0:03:14]} 26. Nd5 {[%emt 0:02:15]} Rb8 {[%emt 0:02:23]} 27. Rg1 {[%emt 0:02:34] aiming for Bxe5.} Kh8 $2 {[%emt 0:02:35]} (27... Bxe6 $11 28. Bxe6+ Rxe6) 28. Rdf1 $36 {[%emt 0:01:07][%cal Og1g5][%mdl 2048] And now Rxg5! would win. Keeping Black busy. White is more active.} (28. Bxe5 dxe5 29. Rdf1 Bf4 $11) 28... h6 {[%emt 0:12:19]} (28... Bxe6 $2 29. Bxe6 a5 30. Bf5 $18) (28... Bb7 29. e7 Ng6) 29. Bf5 $2 {[%emt 0:00:36]} (29. Bxe5 $18 {is the precise move to win.} dxe5 30. Rxg5 {[%mdl 64] Remove Defender} hxg5 31. Qf3 Bxe6 32. Qh5+ Kg8 33. Nxf6+ gxf6 34. Qg6+ Kh8 35. Qxf6+ Kh7 36. Bf5+ Bxf5 37. Qxc6) 29... Bxe6 {[%emt 0:01:34]} 30. Bxe6 {[%emt 0:00:09]} Rxe6 {[%emt 0:00:08]} 31. h4 {[%emt 0:00:11]} Bxh4 $2 {[%emt 0:01:15][%mdl 8192] This move loses the game for Black.} 32. Qxh4 $18 {[%emt 0:00:06][%cal Og1g7] Rxg7! is the strong threat.} Qxc2 $2 {[%emt 0:00:41] [#]} (32... Qc4) 33. Nxf6 {[%emt 0:01:18]} (33. Rxg7 $142 $1 {[%mdl 512]} Kxg7 34. Bxe5 (34. Nxf6 Qd3 $11)) 33... Rf8 {[%emt 0:02:26] [#]} (33... Qd3 $142) 34. Qg3 $1 {[%emt 0:00:58]} Qc7 $2 {[%emt 0:01:08]} (34... Re7 35. Bxe5 dxe5) (34... g5 35. Rf2) 35. Nd5 {[%emt 0:00:28][%csl LRc7,LRf8][%cal Bf6d5,Bd5f4,Bf4g6,Bg6e5][%mdl 96] Discovered Attack} Qf7 {[%emt 0:01:22]} 36. Rxf7 {[%emt 0:00:15] White mates.} Rxf7 {[%emt 0:00:03]} 37. Nf4 {[%emt 0:00:58]} Ref6 {[%emt 0:00:52]} 38. Bxe5 {[%emt 0:00:38]} dxe5 {[%emt 0:00:06]} 39. Ng6+ {[%emt 0:00:25]} Kh7 {[%emt 0:00:09]} 40. Nxe5 {[%emt 0:00:15] An entertaining game by Daemering.   Weighted Error Value: White=0.50/Black=0.61} 1-0

[Event "DFMM-LV 2023"]
[Site "Braunfels"]
[Date "2023.06.11"]
[Round "5.30"]
[White "Schneider, Birgit"]
[Black "Kosovska, Olena"]
[Result "0-1"]
[Annotator "NA RC COMBH"]
[ECO "C02"]
[WhiteElo "1855"]
[BlackElo "1894"]
[PlyCount "102"]
[EventDate "2023.06.09"]
[EventType "team-tourn"]
[EventCountry "GER"]
[SourceTitle "playchess.com"]
[Source "ChessBase"]
[SourceQuality "1"]
[TimeControl "40/5400+30:1800+30"]

1. e4 {[%emt 0:00:02]} c5 {[%emt 0:00:09]} 2. c3 {[%emt 0:00:07]} e6 {[%emt 0:00:24]} 3. d4 {[%emt 0:00:08]} d5 {[%emt 0:00:14]} 4. e5 {[%emt 0:00:09]} Nc6 {[%emt 0:00:30]} 5. Nf3 {[%emt 0:00:09]} Nge7 {[%emt 0:02:46]} 6. a3 {[%emt 0:02:30]} Nf5 {[%emt 0:05:42]} 7. b4 {[%emt 0:05:56]} cxd4 {[%emt 0:03:36]} 8. cxd4 {[%emt 0:00:14]} Be7 {[%emt 0:02:45]} 9. Be3 {[%emt 0:05:32]} O-O {[%emt 0:04:21]} 10. Nc3 {[%emt 0:09:21]} f6 {[%emt 0:01:10]} 11. exf6 {[%emt 0:11:26]} Bxf6 {[%emt 0:00:21]} 12. Be2 {[%emt 0:06:31]} Nxe3 {[%emt 0:02:51]} 13. fxe3 {[%emt 0:00:08]} Bh4+ {[%emt 0:20:06]} 14. g3 {[%emt 0:09:18]} Bf6 {[%emt 0:02:12]} 15. O-O {[%emt 0:04:29]} Bd7 {[%emt 0:02:14]} 16. Rc1 {[%emt 0:03:47]} Ne7 {[%emt 0:11:01]} 17. e4 {[%emt 0:05:30]} g6 {[%emt 0:07:02]} 18. Qb3 {[%emt 0:08:42]} Bc8 {[%emt 0:13:54]} 19. e5 {[%emt 0:06:56]} Bg7 {[%emt 0:00:33]} 20. Bd3 {[%emt 0:03:30]} Bh6 {[%emt 0:03:17]} 21. Rce1 {[%emt 0:01:20]} Bd7 {[%emt 0:02:49]} 22. Na4 {[%emt 0:05:18]} b6 {[%emt 0:03:01]} 23. Kg2 {[%emt 0:01:10]} Rc8 {[%emt 0:02:38]} 24. Nh4 {[%emt 0:03:11]} Nc6 {[%emt 0:03:06]} 25. Rxf8+ {[%emt 0:01:39]} Qxf8 {[%emt 0:00:24]} 26. Nf3 {[%emt 0:01:12]} Ne7 {[%emt 0:02:49]} 27. Nc3 {[%emt 0:01:39]} Nf5 {[%emt 0:00:43]} 28. Bxf5 {[%emt 0:00:27]} Qxf5 {[%emt 0:00:31]} 29. Nd1 {[%emt 0:02:31]} Rc2+ {[%emt 0:00:54]} 30. Nf2 {[%emt 0:00:19]} Bb5 {[%emt 0:00:14]} 31. Qb1 {[%emt 0:00:55]} Bd3 {[%emt 0:00:18]} 32. Qd1 {[%emt 0:00:31]} Ra2 {[%emt 0:02:15]} 33. Kg1 {[%emt 0:00:52]} Be4 {[%emt 0:00:43]} 34. Kg2 $19 {[%emt 0:01:13]} (34. Nxe4 $11 dxe4 35. Qb3 Qxf3 36. Qxa2 Be3+ 37. Rxe3 Qxe3+ 38. Kg2 Qf3+ 39. Kg1) 34... Rxa3 {[%emt 0:00:22]} 35. Nxe4 {[%emt 0:00:24]} dxe4 {[%emt 0:00:11]} 36. Nh4 {[%emt 0:00:28]} Ra2+ {[%emt 0:00:43]} 37. Re2 {[%emt 0:00:08]} Qg4 {[%emt 0:00:51]} 38. Kf1 {[%emt 0:00:47]} Rxe2 {[%emt 0:01:02]} 39. Qxe2 {[%emt 0:00:02]} Qxe2+ {[%emt 0:00:28]} 40. Kxe2 {[%emt 0:00:10]} a5 {[%emt 0:00:16]} 41. Ng2 {[%emt 0:03:36]} a4 {[%emt 0:00:46]} 42. Kd1 {[%emt 0:04:39]} b5 {[%emt 0:01:20]} 43. Ne1 {[%emt 0:00:56]} Kf7 {[%emt 0:03:13]} 44. Nc2 {[%emt 0:01:44]} Ke8 {[%emt 0:03:39]} 45. Na3 {[%emt 0:03:07]} Bf8 {[%emt 0:00:44]} 46. Nxb5 {[%emt 0:05:39]} Bxb4 {[%emt 0:00:14]} 47. Nc7+ {[%emt 0:00:12]} Kd7 {[%emt 0:04:20]} 48. Na6 {[%emt 0:03:10]} Ba3 {[%emt 0:01:01]} 49. Ke2 {[%emt 0:07:53]} Kc6 {[%emt 0:05:10]} 50. Ke3 {[%emt 0:02:40]} Kb7 {[%emt 0:00:42]} 51. Nc5+ {[%emt 0:00:49]} Bxc5 {[%emt 0:00:10]} 0-1

[Event "DFMM-LV 2023"]
[Site "Braunfels"]
[Date "2023.06.11"]
[Round "5.31"]
[White "Lowke, Kathrin"]
[Black "Kohm, Vanessa"]
[Result "1-0"]
[Annotator "NA RC COMBH"]
[ECO "B76"]
[WhiteElo "1848"]
[BlackElo "1769"]
[PlyCount "69"]
[EventDate "2023.06.09"]
[EventType "team-tourn"]
[EventCountry "GER"]
[SourceTitle "playchess.com"]
[Source "ChessBase"]
[SourceQuality "1"]
[TimeControl "40/5400+30:1800+30"]

1. e4 {[%emt 0:00:04]} c5 {[%emt 0:00:06]} 2. Nf3 {[%emt 0:00:05]} Nc6 {[%emt 0:00:09]} 3. d4 {[%emt 0:00:13]} cxd4 {[%emt 0:00:07]} 4. Nxd4 {[%emt 0:00:07]} g6 {[%emt 0:00:11]} 5. Nc3 {[%emt 0:00:37]} Bg7 {[%emt 0:00:14]} 6. Be3 {[%emt 0:00:18]} d6 {[%emt 0:00:17]} 7. Qd2 {[%emt 0:06:30]} Nf6 {[%emt 0:02:33]} 8. f3 {[%emt 0:01:26]} O-O {[%emt 0:01:40]} 9. O-O-O {[%emt 0:00:43]} Nxd4 {[%emt 0:06:41]} 10. Bxd4 {[%emt 0:00:56]} Be6 {[%emt 0:00:47]} 11. Kb1 {[%emt 0:00:38]} a6 {[%emt 0:14:07]} 12. g4 {[%emt 0:02:22]} b5 {[%emt 0:06:15]} 13. h4 {[%emt 0:01:23]} h5 $18 {[%emt 0:20:29]} (13... b4 $16) 14. gxh5 {[%emt 0:05:17]} Nxh5 {[%emt 0:00:32]} 15. Bxg7 {[%emt 0:00:06]} Kxg7 {[%emt 0:02:44]} 16. Be2 {[%emt 0:04:15]} Rh8 {[%emt 0:05:15]} 17. Rdg1 {[%emt 0:01:40]} Qa5 {[%emt 0:03:17]} 18. Qd4+ {[%emt 0:17:20]} f6 {[%emt 0:07:03]} 19. Nd5 {[%emt 0:03:37]} Kf7 {[%emt 0:05:04]} 20. f4 {[%emt 0:05:09]} Ng7 {[%emt 0:06:34]} 21. Rg2 {[%emt 0:07:33]} Rag8 {[%emt 0:03:30]} 22. Rhg1 {[%emt 0:08:36]} Rxh4 {[%emt 0:02:35]} 23. Rxg6 {[%emt 0:00:19]} Rh7 {[%emt 0:00:17]} 24. Rxf6+ {[%emt 0:01:20]} Ke8 {[%emt 0:00:56]} 25. Rxe6 {[%emt 0:01:29]} Nxe6 {[%emt 0:00:39]} 26. Rxg8+ {[%emt 0:02:05]} Kf7 {[%emt 0:02:18]} 27. Qg1 {[%emt 0:01:11]} Ng7 {[%emt 0:01:06]} 28. Rc8 {[%emt 0:01:45]} Qd2 {[%emt 0:04:07]} 29. f5 {[%emt 0:03:54]} Qh6 {[%emt 0:02:15]} 30. Rc7 {[%emt 0:02:27]} Qh1 {[%emt 0:00:46]} 31. Rxe7+ {[%emt 0:00:19]} Kf8 {[%emt 0:00:24]} 32. Qd1 {[%emt 0:00:07]} Qg2 {[%emt 0:01:08]} 33. Nf4 {[%emt 0:03:14]} Qf2 {[%emt 0:00:45]} 34. Ng6+ {[%emt 0:00:38]} Kg8 {[%emt 0:00:04]} 35. Qd5+ {[%emt 0:00:03]} 1-0

[Event "DFMM-LV 2023"]
[Site "Braunfels"]
[Date "2023.06.11"]
[Round "5.32"]
[White "Farhadyar, Kiana"]
[Black "Nobis, Martina"]
[Result "1/2-1/2"]
[Annotator "NA RC COMBH"]
[ECO "B07"]
[WhiteElo "1530"]
[BlackElo "1834"]
[PlyCount "95"]
[EventDate "2023.06.09"]
[EventType "team-tourn"]
[EventCountry "GER"]
[SourceTitle "playchess.com"]
[Source "ChessBase"]
[SourceQuality "1"]
[TimeControl "40/5400+30:1800+30"]

1. e4 {[%emt 0:00:03]} g6 {[%emt 0:00:06]} 2. d4 {[%emt 0:00:14]} Bg7 {[%emt 0:00:05]} 3. Nf3 {[%emt 0:00:11]} d6 {[%emt 0:00:19]} 4. Bd3 {[%emt 0:00:41]} Nf6 {[%emt 0:00:32]} 5. O-O {[%emt 0:00:45]} O-O {[%emt 0:00:05]} 6. Nbd2 {[%emt 0:00:19]} Nbd7 {[%emt 0:06:30]} 7. Re1 {[%emt 0:00:58]} c5 {[%emt 0:02:08]} 8. c3 {[%emt 0:02:40]} Qc7 {[%emt 0:02:11]} 9. Nf1 {[%emt 0:02:23]} c4 {[%emt 0:06:38]} 10. Bc2 {[%emt 0:00:40]} b5 {[%emt 0:01:34]} 11. a4 {[%emt 0:07:20]} Rb8 {[%emt 0:00:49]} 12. axb5 {[%emt 0:05:18]} Rxb5 {[%emt 0:00:55]} 13. Qe2 {[%emt 0:04:37]} Rb8 {[%emt 0:03:01]} 14. Ne3 {[%emt 0:09:20]} Nb6 {[%emt 0:00:59]} 15. Nd2 {[%emt 0:04:10]} Be6 {[%emt 0:16:18]} 16. d5 {[%emt 0:00:54]} Bd7 {[%emt 0:00:06]} 17. Nexc4 {[%emt 0:08:17]} Bb5 {[%emt 0:04:11]} 18. Bd3 {[%emt 0:00:43]} Na4 {[%emt 0:04:39]} 19. Nf3 {[%emt 0:13:51]} Nc5 {[%emt 0:14:19]} 20. Nfd2 {[%emt 0:10:41]} Rfc8 {[%emt 0:08:34]} 21. Ne5 {[%emt 0:07:35]} Nxd3 {[%emt 0:17:55]} 22. Nxd3 {[%emt 0:00:07]} Nd7 {[%emt 0:00:19]} 23. Qe3 {[%emt 0:04:18]} a5 {[%emt 0:00:26]} 24. Nf3 {[%emt 0:02:50]} Qc4 {[%emt 0:02:18]} 25. Rd1 {[%emt 0:04:34]} Qb3 {[%emt 0:00:55]} 26. Qd2 {[%emt 0:01:37]} Bh6 {[%emt 0:01:39]} 27. Nd4 {[%emt 0:04:16]} Bxd2 {[%emt 0:01:21]} 28. Nxb3 {[%emt 0:00:11]} Bxd3 {[%emt 0:02:21]} 29. Nxd2 {[%emt 0:00:17]} a4 {[%emt 0:00:27]} 30. f3 {[%emt 0:01:39]} Nc5 {[%emt 0:00:15]} 31. Nf1 {[%emt 0:01:05]} Bc2 {[%emt 0:01:00]} 32. Re1 {[%emt 0:00:52]} Nb3 {[%emt 0:00:39]} 33. Ra2 {[%emt 0:00:11]} Nc5 {[%emt 0:01:20]} 34. Bg5 {[%emt 0:02:00]} f6 {[%emt 0:00:16]} 35. Be3 {[%emt 0:00:19]} Nd3 {[%emt 0:00:28]} 36. Re2 {[%emt 0:00:13]} Bb3 {[%emt 0:00:13]} 37. Ra1 {[%emt 0:00:44]} Ra8 {[%emt 0:00:24]} 38. Nd2 {[%emt 0:00:40]} Nxb2 {[%emt 0:01:41]} 39. Nxb3 {[%emt 0:00:14]} axb3 {[%emt 0:00:01]} 40. Rxa8 {[%emt 0:00:37]} Rxa8 {[%emt 0:02:33]} 41. Rxb2 {[%emt 0:30:16]} Ra1+ {[%emt 0:27:33]} 42. Kf2 {[%emt 0:00:31]} Ra2 {[%emt 0:00:02]} 43. Bc1 {[%emt 0:00:44]} Ra1 {[%emt 0:00:05]} 44. Rxb3 {[%emt 0:00:00]} Rxc1 {[%emt 0:00:00]} 45. Rb8+ {[%emt 0:00:00]} Kf7 {[%emt 0:00:00]} 46. Rc8 {[%emt 0:00:00]} Rc2+ {[%emt 0:00:00]} 47. Kg3 {[%emt 0:00:00]} Kg7 {[%emt 0:00:00]} 48. Rc7 {[%emt 0:00:00]} 1/2-1/2